bitfinex/quotes_ETHUSD_20260307
["timestamp","ask_amount","ask_price","bid_price","bid_amount"]
[1772887744950,0.47925702,1981.1,1980.6,0.49663114]
[1772887745147,1.74108854,1981.3,1980.6,0.49663114]
[1772887745352,0.001,1981.0,1980.6,0.49663114]
[1772887746071,0.33564317,1981.4,1980.8,0.49663114]
[1772887746439,0.47925702,1981.5,1980.8,0.49663114]
[1772887746939,4.25343667,1981.7,1980.8,0.49663114]
[1772887747144,1.74080723,1981.7,1980.8,0.49663114]
[1772887748043,1.74080194,1981.7,1981.0,0.49663114]
[1772887748366,0.47925702,1981.7,1981.1,1.84963114]
[1772887748784,0.47925702,1981.3,1980.3,1.353]
[1772887749139,0.47925702,1981.3,1980.4,0.49663114]
[1772887749969,0.47925702,1981.3,1980.6,0.49663114]
[1772887750244,1.7408945,1981.6,1980.6,0.49663114]
[1772887750473,0.47925702,1981.5,1980.6,0.49663114]
[1772887751353,0.47925702,1981.5,1980.5,1.26230749]
[1772887751570,0.47925702,1981.5,1980.5,1.75893863]
[1772887752774,0.47925702,1981.3,1980.5,1.75893863]
[1772887752959,0.47925702,1981.3,1980.6,0.49663114]
[1772887753590,0.47925702,1981.5,1980.6,0.49663114]
[1772887756502,1.74096495,1981.5,1980.8,0.49663114]
[1772887757182,0.001,1981.4,1980.8,0.49663114]
[1772887757994,0.48025702,1981.4,1980.8,0.49663114]
[1772887759678,0.48025702,1981.4,1980.9,1.2620526]
[1772887760025,1.74199938,1981.4,1980.9,1.2620526]
[1772887760417,0.48025702,1981.4,1980.9,1.2620526]
[1772887760578,1.74199196,1981.4,1980.9,1.2620526]
[1772887760774,0.47925702,1981.3,1980.5,0.0011]
[1772887760985,0.47925702,1981.2,1980.5,1.2633598]
[1772887762278,1.26192519,1981.1,1980.5,1.75999094]
[1772887762588,1.74118221,1981.1,1980.5,1.75999094]
[1772887765711,0.47925702,1981.1,1980.5,1.75999094]
[1772887766015,0.47925702,1981.1,1980.6,0.49663114]
[1772887766201,0.48025702,1981.4,1980.6,0.49663114]
[1772887766378,1.74199746,1981.4,1980.6,0.49663114]
[1772887767823,0.48025702,1981.4,1980.7,1.26218003]
[1772887767982,0.48025702,1981.4,1980.8,0.49663114]
[1772887768284,0.48025702,1981.4,1980.9,1.366]
[1772887768703,0.48025702,1981.4,1981.0,0.49663114]
[1772887768914,0.001,1981.4,1981.0,0.49663114]
[1772887769880,0.48025702,1981.4,1980.9,1.366]
[1772887770085,0.48025702,1981.4,1980.9,2.62804563]
[1772887771282,0.001,1981.3,1980.9,2.62804563]
[1772887772314,0.001,1981.3,1980.9,3.11315541]
[1772887773104,0.001,1981.3,1981.0,0.48510978]
[1772887775210,0.001,1981.3,1981.1,1.26192519]
[1772887776411,0.001,1981.3,1981.0,1.74704719]
[1772887781188,0.001,1981.3,1981.1,0.48510978]
[1772887782196,0.001,1981.3,1981.0,1.74704719]
[1772887783009,0.001,1981.3,1981.1,0.48510978]
[1772887783608,0.001,1981.2,1981.1,0.48510978]
[1772887784128,0.001,1981.2,1981.0,1.26303741]
[1772887784427,0.001,1981.2,1981.0,1.74814719]
[1772887786036,0.001,1981.2,1981.0,1.74819813]
[1772887786530,0.001,1981.2,1981.1,1.369]
[1772887797327,0.001,1981.4,1981.2,0.48510978]
[1772887798436,0.001,1981.4,1981.2,1.74693756]
[1772887799040,0.001,1981.4,1981.3,0.48510978]
[1772887799963,0.45555695,1981.7,1981.4,0.48825117]
[1772887800447,0.45555695,1981.8,1981.5,0.48825117]
[1772887800639,0.45555695,1981.8,1981.4,1.2616858]
[1772887803369,0.45555695,1981.8,1981.4,1.72434357]
[1772887805081,0.46598275,1981.9,1981.5,0.46265777]
[1772887805239,0.46598275,1981.9,1981.6,1.37]
[1772887805734,0.46598275,1981.9,1981.6,1.83265777]
[1772887808135,0.001,1981.7,1981.6,1.83265777]
[1772887808744,0.001,1981.7,1981.6,3.09426455]
[1772887809546,0.46698275,1981.7,1981.5,0.0011]
[1772887809749,0.46698275,1981.7,1981.4,0.0011]
[1772887809967,0.46598275,1981.6,1981.4,0.0011]
[1772887811762,0.46598275,1981.5,1981.4,0.0011]
[1772887813380,0.001,1981.7,1981.4,0.46375777]
[1772887815551,0.001,1981.7,1981.6,0.46265777]
[1772887815759,0.001,1982.0,1981.6,0.46265777]
[1772887817068,0.001,1982.0,1981.6,0.48025201]
[1772887817670,0.001,1982.0,1981.8,0.46265777]
[1772887817877,0.001,1982.0,1981.9,1.366]
[1772887819808,0.001,1982.0,1981.9,3.09007358]
[1772887824589,0.46698275,1982.0,1981.8,1.26143617]
[1772887824888,0.46698275,1982.0,1981.9,1.37]
[1772887835510,0.46698275,1982.0,1981.8,0.0011]
[1772887836680,0.47594375,1981.9,1981.8,0.0011]
[1772887841204,0.001,1982.0,1981.8,0.0011]
[1772887841407,0.001,1982.0,1981.8,0.45655311]
[1772887842736,0.001,1982.0,1981.9,1.71686892]
[1772887845612,0.47594375,1982.3,1981.9,1.71686892]
[1772887846121,0.47594375,1982.3,1982.0,0.45545311]
[1772887848130,0.47694376,1982.2,1982.0,0.45545311]
[1772887852422,0.47694376,1982.2,1982.0,1.71679054]
[1772887853595,0.47694376,1982.2,1982.1,0.45545311]
[1772887856129,0.47694376,1982.2,1982.0,1.26133743]
[1772887856317,0.47694376,1982.2,1982.0,1.71679054]
[1772887857129,0.47694376,1982.2,1982.1,1.3761]
[1772887860625,0.47694376,1982.2,1982.1,1.84511262]
[1772887860821,0.47694376,1982.2,1982.1,1.3761]
[1772887861532,0.49742277,1982.1,1982.0,0.0011]
[1772887861711,0.49742277,1982.1,1982.0,1.3751]
[1772887863538,0.49742277,1982.1,1982.0,0.89815624]
[1772887865510,1.26113521,1982.4,1982.0,1.35893779]
[1772887865702,1.26113521,1982.4,1982.1,0.46078155]
[1772887865917,1.74530376,1982.4,1982.1,0.46078155]
[1772887867534,0.48416855,1982.3,1982.0,0.89815624]
[1772887869255,0.48416855,1982.3,1982.1,0.0011]
[1772887869448,0.48416855,1982.3,1982.0,0.89815624]
[1772887869449,0.48516855,1982.2,1982.0,0.89815624]
[1772887869847,0.48516855,1982.2,1982.0,0.89925624]
[1772887877664,1.74640922,1982.2,1982.0,0.89925624]
[1772887877844,0.48416855,1982.1,1982.0,0.89925624]
[1772887880338,0.48416855,1982.0,1981.8,0.0011]
[1772887880739,0.48416855,1982.0,1981.7,0.0011]
[1772887881771,0.48516855,1982.0,1981.7,0.0011]
[1772887882340,1.26141581,1981.9,1981.8,0.0011]
[1772887882664,1.74558436,1981.9,1981.8,0.0011]
[1772887882842,0.48416855,1981.8,1981.7,0.0011]
[1772887883043,0.48416855,1981.8,1981.4,0.46188155]
[1772887883338,0.48416855,1981.8,1981.4,0.0011]
[1772887884666,1.26154311,1981.7,1981.4,0.0011]
[1772887884867,0.48416855,1981.6,1981.4,0.0011]
[1772887887669,1.74578667,1981.6,1981.4,0.0011]
[1772887887975,0.48416855,1981.6,1981.4,0.0011]
[1772887889757,0.48416855,1981.7,1981.4,0.0011]
[1772887889952,0.48416855,1981.7,1981.4,0.46188155]
[1772887892481,1.74576816,1981.7,1981.4,0.46188155]
[1772887892649,1.74576816,1981.7,1981.4,0.0011]
[1772887893780,1.74576816,1981.7,1981.5,0.0011]
[1772887894156,0.49921915,1981.6,1981.5,0.0011]
[1772887896984,0.49921915,1981.8,1981.5,0.0011]
[1772887899981,0.49921915,1981.6,1981.5,0.0011]
[1772887902492,1.76082593,1981.6,1981.5,0.0011]
[1772887904368,0.49921915,1981.9,1981.5,0.46124931]
[1772887904565,1.76069861,1981.8,1981.5,0.46124931]
[1772887905176,1.76069861,1981.8,1981.6,0.0011]
[1772887910460,1.26147946,1981.8,1981.6,0.46124931]
[1772887910660,1.2614673,1981.9,1981.6,0.46124931]
[1772887911183,1.76068645,1981.9,1981.6,0.46124931]
[1772887911962,5.04654014,1982.0,1981.6,0.46124931]
[1772887912207,5.54575929,1982.0,1981.6,0.46124931]
[1772887913891,0.49921915,1981.9,1981.6,0.0011]
[1772887914104,1.76068669,1981.9,1981.6,0.0011]
[1772887914480,1.76068669,1981.9,1981.6,0.46124931]
[1772887917292,1.76168669,1981.9,1981.6,0.46124931]
[1772887919798,0.001,1981.9,1981.6,0.46124931]
[1772887922008,0.001,1981.9,1981.7,0.49994512]
[1772887923406,0.001,1982.2,1981.7,0.48775657]
[1772887925108,0.001,1982.2,1981.9,0.48775657]
[1772887925324,0.001,1982.2,1982.0,0.48775657]
[1772887929900,0.001,1982.1,1982.0,0.48775657]
[1772887930110,0.001,1982.1,1982.0,1.74910873]
[1772887938226,0.001,1982.5,1982.2,0.48775657]
[1772887939698,1.26203944,1982.5,1982.2,0.48775657]
[1772887941821,0.001,1982.5,1982.3,0.48775657]
[1772887943340,0.001,1982.5,1982.4,0.48775657]
[1772887943561,0.001,1982.8,1982.4,0.48775657]
[1772887943562,1.26187667,1982.8,1982.4,0.48775657]
[1772887943844,1.7362027,1982.8,1982.4,0.48775657]
[1772887944627,0.001,1982.8,1982.5,0.48775657]
[1772887946022,0.47532603,1982.8,1982.5,0.48775657]
[1772887948151,0.47432603,1982.7,1982.5,1.374]
[1772887948552,1.26184758,1982.8,1982.5,1.374]
[1772887948715,1.73617361,1982.8,1982.5,1.374]
[1772887948922,1.73617361,1982.8,1982.5,1.86175657]
[1772887951956,0.47432603,1982.7,1982.4,1.86175657]
[1772887953155,0.46437935,1982.8,1982.5,0.4669984]
[1772887955270,1.72524071,1982.8,1982.5,0.4669984]
[1772887955562,0.001,1982.7,1982.5,0.4669984]
[1772887958956,0.46437935,1982.7,1982.4,1.375]
[1772887959653,0.46437935,1982.7,1982.4,1.8419984]
[1772887961961,1.72533365,1982.7,1982.4,1.8419984]
[1772887962857,1.2619543,1982.7,1982.4,1.8419984]
[1772887963258,0.001,1982.8,1982.5,0.4669984]
[1772887967438,0.001,1982.8,1982.6,0.0011]
[1772887967639,0.001,1982.7,1982.6,0.0011]
[1772887969163,0.001,1982.7,1982.6,0.4680984]
[1772887970067,0.001,1982.8,1982.6,0.0011]
[1772887970265,0.001,1982.8,1982.7,0.4669984]
[1772887971242,0.001,1982.8,1982.6,0.4680984]
[1772887971566,0.46437935,1982.8,1982.6,0.0011]
[1772887977578,1.72522568,1982.8,1982.6,0.0011]
[1772887979883,0.46437935,1982.8,1982.6,0.0011]
[1772887980482,0.46437935,1982.8,1982.7,0.0011]
[1772887981794,0.001,1982.8,1982.7,0.0011]
[1772887988500,0.001,1982.8,1982.7,0.48167617]
[1772887990699,0.001,1982.8,1982.7,0.0011]
[1772887995603,0.001,1982.8,1982.7,0.48167617]
[1772887997578,0.001,1982.8,1982.7,0.0011]
[1772888002190,0.001,1982.8,1982.7,0.48167617]
[1772888003505,0.001,1982.8,1982.7,0.0011]
[1772888006401,0.001,1982.8,1982.7,0.48167617]
[1772888007083,1.59380427,1983.0,1982.8,0.48057617]
[1772888012013,1.59376137,1983.0,1982.8,0.48057617]
[1772888014815,0.33303824,1983.0,1982.8,0.48057617]
[1772888017928,0.33303824,1983.0,1982.9,0.48558116]
[1772888018232,0.33303824,1983.0,1982.9,0.0011]
[1772888019728,0.33303824,1983.0,1982.9,0.48558116]
[1772888026460,0.79911957,1983.0,1982.8,0.0011]
[1772888026815,0.46608133,1982.9,1982.6,0.0011]
[1772888030746,1.72692202,1982.9,1982.7,0.0011]
[1772888030946,1.72792202,1982.9,1982.6,0.0011]
[1772888032218,0.46608133,1982.8,1982.6,0.0011]
[1772888033350,1.72692587,1982.8,1982.6,0.0011]
[1772888036550,0.46608133,1982.8,1982.6,0.0011]
[1772888037349,1.72790812,1982.9,1982.6,0.48558116]
[1772888039338,1.72790812,1982.9,1982.6,0.0011]
[1772888039650,0.46608133,1982.8,1982.6,0.0011]
[1772888041152,0.46608133,1982.8,1982.4,0.0011]
[1772888043129,1.74562119,1982.7,1982.4,0.0011]
[1772888043729,1.74562119,1982.7,1982.4,0.45800479]
[1772888044156,1.74562119,1982.7,1982.5,0.0011]
[1772888044456,1.74562119,1982.7,1982.4,0.45800479]
[1772888055774,1.74562119,1982.7,1982.5,0.0011]
[1772888056272,0.001,1982.6,1982.5,0.0011]
[1772888059774,0.001,1982.8,1982.6,0.45690479]
[1772888060475,1.26184356,1982.8,1982.6,0.45690479]
[1772888061274,1.26184356,1982.8,1982.5,0.45800479]
[1772888065582,0.001,1982.8,1982.5,0.45800479]
[1772888068086,0.001,1982.8,1982.6,0.0011]
[1772888068385,0.001,1982.7,1982.6,0.0011]
[1772888070691,0.001,1982.7,1982.6,0.45800479]
[1772888072289,0.001,1982.7,1982.6,0.0011]
[1772888073789,0.001,1982.8,1982.6,0.0011]
[1772888073993,0.33303824,1983.0,1982.7,0.46034097]
[1772888076995,0.33303824,1983.0,1982.8,0.46034097]
[1772888079702,0.33303824,1983.0,1982.8,0.46144097]
[1772888079906,0.001,1982.9,1982.8,0.46144097]
[1772888081311,0.33303824,1983.0,1982.9,0.46034097]
[1772888091894,0.33303824,1983.0,1982.8,0.46144097]
[1772888092094,0.001,1982.9,1982.8,0.46144097]
[1772888093117,1.260659,1983.1,1982.9,0.46034097]
[1772888093287,1.26163689,1983.2,1982.9,0.46034097]
[1772888093987,0.001,1983.2,1982.9,0.46034097]
[1772888097917,1.26158894,1983.2,1982.9,0.46034097]
[1772888098217,0.4742555,1983.1,1982.8,0.0011]
[1772888098911,0.4742555,1983.0,1982.6,0.0011]
[1772888099235,0.4742555,1983.0,1982.2,0.46144097]
[1772888099523,0.4742555,1983.0,1982.2,1.81944097]
[1772888099733,0.4742555,1982.8,1982.2,1.81944097]
[1772888099925,0.49143249,1982.6,1982.2,1.81944097]
[1772888100221,0.49143249,1982.6,1982.2,0.0011]
[1772888101044,0.49143249,1982.4,1982.0,0.0011]
[1772888101326,0.49143249,1982.2,1981.8,0.0011]
[1772888101894,0.49143249,1982.0,1981.8,0.0011]
[1772888104016,0.49550365,1982.2,1981.8,0.0011]
[1772888104215,0.49550365,1982.6,1981.8,0.46936736]
[1772888104716,0.49550365,1982.6,1982.0,0.46936736]
[1772888106335,0.49550365,1982.4,1982.0,0.0011]
[1772888108042,0.49550365,1982.4,1982.0,0.46936736]
[1772888108245,0.49550365,1982.4,1982.0,0.0011]
[1772888109047,1.26116127,1982.3,1982.0,0.0011]
[1772888109331,0.49550365,1982.2,1982.0,0.0011]
[1772888110100,0.49550365,1982.5,1982.0,0.46936736]
[1772888111122,1.75655442,1982.5,1982.0,1.73067158]
[1772888111318,0.49550365,1982.5,1982.1,0.46826736]
[1772888111942,1.26097696,1982.6,1982.1,0.46826736]
[1772888112637,1.75648061,1982.6,1982.1,0.46826736]
[1772888116638,1.75648061,1982.6,1982.2,0.46826736]
[1772888117339,0.001,1982.5,1982.2,0.46826736]
[1772888118432,0.001,1982.5,1982.3,1.72942863]
[1772888118636,0.001,1982.5,1982.4,0.46826736]
[1772888121346,0.001,1982.5,1982.4,1.72936501]
[1772888121819,0.49550365,1982.7,1982.2,1.2612249]
[1772888122020,0.49550365,1982.7,1982.1,3.07360609]
[1772888122220,0.49550365,1982.7,1982.2,0.46826736]
[1772888123116,0.49550365,1982.5,1982.1,0.0011]
[1772888123841,0.49550365,1982.4,1982.1,0.0011]
[1772888124047,0.49550365,1982.4,1982.0,0.0011]
[1772888125323,0.49550365,1982.2,1982.0,0.0011]
[1772888126250,0.49550365,1982.2,1981.8,0.0011]
[1772888127851,0.49550365,1982.0,1981.8,0.0011]
[1772888128952,0.49550365,1982.0,1981.9,0.0011]
[1772888130333,1.75685581,1982.0,1981.9,0.0011]
[1772888130734,1.75685581,1982.0,1981.8,0.0011]
[1772888130934,0.49550365,1981.9,1981.8,0.0011]
[1772888135161,0.45040692,1982.0,1981.8,0.0011]
[1772888138465,1.71180114,1982.0,1981.8,0.0011]
[1772888140467,1.71180114,1982.0,1981.9,0.0011]
[1772888140668,1.71180114,1982.0,1981.8,0.0011]
[1772888140848,0.001,1981.9,1981.8,0.0011]
[1772888148559,0.45140692,1981.9,1981.8,0.0011]
[1772888152446,1.26241581,1981.9,1981.8,0.0011]
[1772888153373,0.45040692,1981.8,1981.5,0.0011]
[1772888154468,0.45040692,1981.6,1981.5,0.0011]
[1772888154780,0.45040692,1981.6,1981.2,0.0011]
[1772888156887,0.45040692,1981.4,1981.2,0.0011]
[1772888158483,0.45040692,1981.4,1981.0,0.36599006]
[1772888158856,1.26179537,1981.4,1981.0,0.36599006]
[1772888159157,0.45040692,1981.3,1981.0,0.36599006]
[1772888159461,0.97229335,1981.8,1981.1,0.36489006]
[1772888159462,0.45040692,1981.8,1981.1,0.36489006]
[1772888159789,0.45040692,1981.7,1981.1,0.36489006]
[1772888160284,0.453854,1981.6,1981.1,0.36489006]
[1772888161284,2.06154679,1981.7,1981.3,0.36489006]
[1772888161486,1.26154679,1981.7,1981.3,0.36489006]
[1772888162155,0.453854,1981.8,1981.3,0.36489006]
[1772888162355,1.7504221,1981.9,1981.3,0.36489006]
[1772888163386,1.7504221,1981.9,1981.2,1.26186149]
[1772888163387,1.7504221,1981.9,1981.4,1.26173412]
[1772888163578,1.7504221,1981.9,1981.5,0.36489006]
[1772888164474,0.001,1981.8,1981.5,0.36489006]
[1772888164987,0.001,1981.9,1981.6,0.36389006]
[1772888165354,0.48897044,1981.9,1981.7,1.26154311]
[1772888165558,0.48897044,1981.9,1981.6,0.36389006]
[1772888166300,0.001,1981.9,1981.7,0.36389006]
[1772888168280,0.001,1981.9,1981.8,0.36389006]
[1772888169098,0.001,1981.9,1981.5,0.36389006]
[1772888169397,0.48897044,1981.9,1981.4,1.26173412]
[1772888169781,0.48897044,1981.9,1981.5,0.36389006]
[1772888170904,0.48897044,1981.9,1981.5,1.62550227]
[1772888174418,0.48897044,1981.9,1981.6,0.36389006]
[1772888174779,0.001,1981.9,1981.6,0.36389006]
[1772888176308,0.001,1981.9,1981.7,0.36389006]
[1772888176706,0.001,1981.9,1981.7,0.36289006]
[1772888176883,1.74919785,1982.2,1981.7,0.36289006]
[1772888177282,0.48797044,1982.2,1981.7,0.36289006]
[1772888179396,0.48897044,1982.4,1981.8,0.36289006]
[1772888180017,0.48797044,1982.2,1981.8,0.36289006]
[1772888180892,0.48797044,1982.2,1981.7,1.357]
[1772888182111,1.26128853,1982.1,1981.7,1.71989006]
[1772888182303,0.48797044,1982.0,1981.7,1.71989006]
[1772888182617,0.48797044,1982.0,1981.7,2.98141854]
[1772888187231,0.48797044,1982.2,1981.8,0.36289006]
[1772888188390,0.48797044,1982.2,1981.7,1.357]
[1772888189197,0.48797044,1982.2,1981.9,0.0011]
[1772888189401,0.48797044,1982.0,1981.9,0.0011]
[1772888194234,1.71697859,1982.2,1981.9,0.0011]
[1772888194731,0.45574404,1982.1,1981.9,0.0011]
[1772888195405,1.26123455,1982.2,1981.9,0.36399006]
[1772888195923,1.71795039,1982.3,1981.9,0.36399006]
[1772888196995,0.45574404,1982.2,1981.9,0.36399006]
[1772888200907,1.71697142,1982.2,1982.0,0.0011]
[1772888201412,0.001,1982.1,1982.0,0.0011]
[1772888202042,0.001,1982.1,1982.0,0.36399006]
[1772888202358,0.001,1982.3,1982.0,0.36399006]
[1772888203839,0.001,1982.3,1982.1,1.62317859]
[1772888206424,0.001,1982.3,1982.1,0.36189006]
[1772888206758,0.001,1982.3,1982.0,0.0011]
[1772888206759,0.45674404,1982.3,1982.0,0.0011]
[1772888209758,1.26217766,1982.3,1982.0,0.0011]
[1772888209926,0.45574404,1982.2,1982.0,0.0011]
[1772888213082,0.45574404,1982.2,1982.1,0.0011]
[1772888220378,0.45869094,1982.3,1982.1,0.0011]
[1772888224912,0.001,1982.2,1982.1,0.0011]
[1772888231985,0.001,1982.2,1982.1,0.36299006]
[1772888232971,0.001,1982.2,1982.1,0.0011]
[1772888241171,0.001,1982.4,1982.2,0.36189006]
[1772888242598,0.45420191,1982.4,1982.1,0.0011]
[1772888244507,0.45420191,1982.4,1982.1,0.36299006]
[1772888247211,0.45420191,1982.4,1982.1,1.62426033]
[1772888248013,0.45420191,1982.4,1982.2,0.0011]
[1772888248308,0.001,1982.3,1982.2,0.0011]
[1772888262020,0.48557712,1982.3,1982.2,0.0011]
[1772888264723,0.001,1982.4,1982.2,0.36299006]
[1772888267835,0.001,1982.4,1982.2,1.62420188]
[1772888269319,0.001,1982.4,1982.2,0.36299006]
[1772888272112,0.48557712,1982.4,1982.2,0.0011]
[1772888272923,0.48557712,1982.4,1982.3,0.0011]
[1772888273122,0.001,1982.4,1982.3,0.0011]
[1772888273630,0.48557712,1982.4,1982.3,0.0011]
[1772888278713,0.48557712,1982.4,1982.2,0.0011]
[1772888282232,0.47180525,1982.3,1982.2,0.0011]
[1772888283140,1.73296652,1982.3,1982.2,0.0011]
[1772888285144,1.73296652,1982.3,1982.1,0.0011]
[1772888285346,1.73396652,1982.3,1982.1,0.0011]
[1772888285513,0.47180525,1982.2,1982.1,0.0011]
[1772888297149,0.47280525,1982.2,1982.1,0.0011]
[1772888297733,0.001,1982.2,1982.1,0.0011]
[1772888300436,0.001,1982.2,1982.1,0.4748545]
[1772888303846,0.001,1982.2,1982.1,0.0011]
[1772888304367,0.001,1982.2,1982.1,0.4748545]
[1772888304744,0.001,1982.2,1982.1,0.0011]
[1772888305451,0.001,1982.2,1982.1,0.4748545]
[1772888305655,0.001,1982.2,1982.1,0.0011]
[1772888308161,0.001,1982.2,1982.1,0.4748545]
[1772888309366,0.001,1982.2,1982.1,0.0011]
[1772888312574,0.47073173,1982.2,1982.1,0.0011]
[1772888316844,0.001,1982.2,1982.1,0.0011]
[1772888321090,0.001,1982.2,1982.1,0.45594866]
[1772888331803,0.001,1982.2,1982.0,0.22238614]
[1772888331981,0.47073173,1982.2,1982.0,0.0011]
[1772888332368,0.001,1982.1,1982.0,0.0011]
[1772888335400,0.001,1982.1,1982.0,0.22238614]
[1772888337406,0.001,1982.1,1982.0,1.4837383]
[1772888337782,0.001,1982.4,1982.1,0.22128614]
[1772888337983,0.001,1982.4,1982.3,0.22128614]
[1772888339506,0.001,1982.4,1982.3,1.48244741]
[1772888339984,0.001,1982.4,1982.3,0.22128614]
[1772888342003,0.46172199,1982.4,1982.2,2.6242186]
[1772888342306,0.46172199,1982.4,1982.2,1.363]
[1772888342823,0.46172199,1982.4,1982.2,2.62422088]
[1772888343123,0.001,1982.4,1982.2,2.82083597]
[1772888344021,0.001,1982.4,1982.2,2.82193597]
[1772888344222,0.001,1982.3,1982.2,2.82193597]
[1772888349818,0.001,1982.3,1982.2,1.56071509]
[1772888350045,0.001,1982.3,1982.2,2.82193999]
[1772888350988,0.001,1982.3,1982.2,1.3641]
[1772888352412,0.001,1982.3,1982.2,2.82193999]
[1772888352719,0.001,1982.3,1982.2,1.56071509]
[1772888353035,0.001,1982.3,1982.2,2.6253249]
[1772888353890,0.47062098,1982.3,1982.2,2.6253249]
[1772888354092,0.47062098,1982.3,1982.2,1.3641]
[1772888354424,0.47062098,1982.3,1982.2,2.6253249]
[1772888356942,0.47062098,1982.3,1982.2,1.3641]
[1772888358516,0.47062098,1982.3,1982.2,0.0011]
[1772888358736,0.47062098,1982.3,1982.2,1.3701]
[1772888365356,0.47062098,1982.3,1982.2,0.0011]
[1772888372553,0.001,1982.3,1982.2,0.0011]
[1772888374368,0.47513591,1982.3,1982.2,0.0011]
[1772888377946,0.47413591,1982.7,1982.2,0.17715588]
[1772888379454,0.47413591,1982.7,1982.3,1.26116127]
[1772888380158,5.04412667,1982.9,1982.4,0.45853462]
[1772888380159,0.001,1982.6,1982.4,0.45853462]
[1772888384666,0.001,1982.6,1982.4,1.71960538]
[1772888385644,0.001,1982.6,1982.5,1.373]
[1772888388775,0.001,1982.6,1982.5,2.63403404]
[1772888390582,0.001,1982.6,1982.5,3.09256866]
[1772888393168,0.001,1982.6,1982.5,3.09366866]
[1772888393781,0.47413591,1982.8,1982.5,3.09366866]
[1772888394002,0.47513591,1982.9,1982.6,0.45853462]
[1772888395499,0.47513591,1982.9,1982.5,2.63513404]
[1772888395703,0.47413591,1982.8,1982.3,1.26225665]
[1772888395912,0.47413591,1982.8,1982.4,1.377]
[1772888397987,1.26089046,1982.8,1982.4,1.377]
[1772888398191,0.47413591,1982.7,1982.4,1.377]
[1772888400485,0.47413591,1982.7,1982.4,1.86767802]
[1772888400911,0.47413591,1982.7,1982.4,3.12875795]
[1772888401111,0.49886329,1982.9,1982.5,0.49067802]
[1772888401293,0.001,1982.9,1982.5,0.49067802]
[1772888401776,0.001,1982.9,1982.7,0.49067802]
[1772888401975,1.75946029,1983.2,1982.7,0.49067802]
[1772888402194,0.49238992,1983.1,1982.6,1.26097044]
[1772888402395,0.49238992,1983.1,1982.6,1.378]
[1772888403310,0.49238992,1983.1,1982.4,0.48914956]
[1772888403998,1.26071608,1983.0,1982.5,1.26103404]
[1772888404171,0.49238992,1982.9,1982.5,0.48914956]
[1772888404703,0.49238992,1982.9,1982.6,0.0011]
[1772888405083,0.49338992,1982.8,1982.6,0.0011]
[1772888406700,0.49238992,1982.7,1982.5,0.0011]
[1772888408510,1.75423862,1982.8,1982.5,0.0011]
[1772888410207,0.49238992,1982.7,1982.5,0.0011]
[1772888417218,0.49238992,1982.7,1982.6,0.0011]
[1772888421623,1.75329676,1982.7,1982.6,0.0011]
[1772888421821,0.49238992,1982.6,1982.5,0.0011]
[1772888424093,1.75336036,1982.6,1982.5,0.0011]
[1772888424791,0.49238992,1982.6,1982.5,0.0011]
[1772888425814,1.75336036,1982.6,1982.5,0.0011]
[1772888429707,1.75436036,1982.6,1982.5,0.0011]
[1772888436907,1.26197044,1982.6,1982.5,0.0011]
[1772888445316,0.001,1982.6,1982.5,0.45770284]
[1772888446217,0.001,1982.6,1982.5,0.0011]
[1772888447522,0.001,1982.6,1982.5,0.45770284]
[1772888448450,0.001,1982.8,1982.6,0.45660284]
[1772888451654,0.001,1982.8,1982.6,1.26096665]
[1772888451836,0.001,1982.8,1982.7,0.45660284]
[1772888452948,0.001,1982.8,1982.7,1.71750968]
[1772888453124,0.001,1982.8,1982.7,0.45660284]
[1772888454039,0.001,1982.8,1982.7,1.71750968]
[1772888454357,1.26162913,1983.2,1982.8,0.45660284]
[1772888454529,1.75705159,1983.2,1982.8,0.45660284]
[1772888455025,1.75705159,1983.2,1982.8,1.71744491]
[1772888460257,1.75705159,1983.2,1982.8,1.26084207]
[1772888460456,0.49642246,1983.2,1982.9,0.45059747]
[1772888461834,1.75701299,1983.2,1982.9,0.45059747]
[1772888462258,1.75701153,1983.2,1982.9,0.45059747]
[1772888462461,0.45676829,1983.1,1982.6,0.0011]
[1772888464761,0.45676829,1982.9,1982.6,0.0011]
[1772888468462,0.45676829,1982.9,1982.6,0.47349842]
[1772888470276,1.71756677,1982.9,1982.6,0.0011]
[1772888470475,0.45676829,1982.8,1982.6,0.0011]
[1772888470675,0.45676829,1982.7,1982.6,0.0011]
[1772888470975,0.45676829,1982.7,1982.5,1.3661]
[1772888470976,0.45676829,1982.7,1982.5,0.0011]
[1772888472787,0.45676829,1982.9,1982.5,0.47349842]
[1772888472993,0.45776829,1983.1,1982.7,0.47239842]
[1772888473155,0.001,1983.1,1982.7,0.47239842]
[1772888474882,0.001,1983.2,1982.9,0.47239842]
[1772888476591,0.001,1983.1,1982.9,0.47239842]
[1772888476998,0.001,1983.1,1983.0,0.47239842]
[1772888479387,0.001,1983.1,1982.9,0.47239842]
[1772888481697,0.001,1983.1,1983.0,1.7331145]
[1772888483301,0.001,1983.1,1983.0,1.26071608]
[1772888483501,0.45776829,1983.1,1982.6,1.73443897]
[1772888483688,1.26168504,1983.1,1982.6,1.26204055]
[1772888483893,0.45676829,1983.0,1982.6,1.26204055]
[1772888484502,0.45676829,1983.0,1982.6,0.0011]
[1772888486995,0.45676829,1982.9,1982.6,0.0011]
[1772888487906,0.45676829,1982.9,1982.7,0.0011]
[1772888490085,0.45676829,1982.8,1982.7,0.0011]
[1772888492706,0.49110265,1982.7,1982.5,0.0011]
[1772888496508,0.49110265,1982.6,1982.5,0.0011]
[1772888498384,0.49110265,1982.5,1982.2,0.0011]
[1772888498606,0.49110265,1982.5,1981.9,1.72912104]
[1772888499693,0.49110265,1982.3,1981.9,1.72912104]
[1772888500703,0.49110265,1982.3,1982.1,0.0011]
[1772888507330,0.49110265,1982.2,1982.1,0.0011]
[1772888507707,0.49110265,1982.2,1981.9,0.0011]
[1772888510434,0.49110265,1982.2,1981.9,1.26251324]
[1772888511424,0.49110265,1982.2,1981.9,0.0011]
[1772888512608,0.49110265,1982.2,1982.1,0.0011]
[1772888512807,0.49210265,1982.2,1982.1,0.0011]
[1772888513398,0.001,1982.2,1982.1,0.0011]
[1772888523107,0.48938191,1982.2,1982.1,0.0011]
[1772888526023,0.001,1982.2,1982.1,0.0011]